[Event "79th LOTTO Polish-ch 2022"]
[Site "Kruszwica"]
[Date "2022.05.15"]
[Round "5.1"]
[White "Piorun, Kacper"]
[Black "Wojtaszek, Radoslaw"]
[Result "1/2-1/2"]
[ECO "B91"]
[WhiteElo "2635"]
[BlackElo "2696"]
[Annotator "TA"]
[PlyCount "50"]
[EventDate "2022.05.10"]
[EventType "k.o."]
[EventCountry "POL"]
[SourceTitle "playchess.com"]
[Source "ChessBase"]
[SourceQuality "1"]
[TimeControl "900+10"]

{[%evp 19,31,0,0,0,9,9,23,0,26,0,25,0,24,0]} 1. e4 {[%emt 0:00:00]} c5 {[%emt 0:00:00]} 2. Nf3 {[%emt 0:00:00][%cal Bg1f3,Bf3d4,Bd4b3,Bb3d2][%mdl 32]} d6 {[%emt 0:00:00]} 3. d4 {[%emt 0:00:00]} cxd4 {[%emt 0:00:00]} 4. Nxd4 {[%emt 0:00:00]} Nf6 {[%emt 0:00:00]} 5. Nc3 {[%emt 0:00:00]} a6 {[%emt 0:00:00]} 6. g3 {[%emt 0:00:00]} e5 {[%emt 0:00:00]} 7. Nb3 {[%emt 0:00:00]} Be7 {[%emt 0:00:00]} 8. Bg2 {[%emt 0:00:00]} O-O {[%emt 0:00:00]} 9. O-O {[%emt 0:00:00]} Be6 {[%emt 0:00:00]} 10. a4 {[%emt 0:00:00]} Nbd7 {[%emt 0:00:00]} 11. Re1 {[%emt 0:00:00] B91: Sicilian Najdorf: 6 g3.} Qc7 {[%emt 0:00:00]} 12. Nd2 {[%emt 0:00:00]} Qc5 {[%emt 0:00:00]} 13. Nb3 {[%emt 0:00:00]} Qc7 {[%emt 0:00:00]} 14. Nd2 {[%emt 0:00:00]} Qc5 {[%emt 0:00:00]} 15. Nb3 {[%emt 0:00:00]} Qc7 {[%emt 0:00:00]} 16. Nd2 {[#] A rather calm draw.  Weighted Error Value: White=0.12 (very precise) /Black=0.04 (flawless)} {Predecessor:} Bd8 $146 17. Nf1 Qc5 18. Ne3 Ba5 19. Bd2 Rac8 20. Ne2 Bxd2 21. Qxd2 Ng4 22. Nxg4 Bxg4 23. Rac1 b5 24. b4 Qc6 25. axb5 axb5 {½-½ (39) Wei,Y (2706)-Giri,A (2798) Wijk aan Zee 2016} 1/2-1/2

[Event "79th LOTTO Polish-ch 2022"]
[Site "Kruszwica"]
[Date "2022.05.16"]
[Round "5.2"]
[White "Wojtaszek, Radoslaw"]
[Black "Piorun, Kacper"]
[Result "1-0"]
[ECO "D25"]
[WhiteElo "2696"]
[BlackElo "2635"]
[Annotator "TA"]
[PlyCount "81"]
[EventDate "2022.05.10"]
[EventType "k.o."]
[EventCountry "POL"]
[SourceTitle "playchess.com"]
[Source "ChessBase"]
[SourceQuality "1"]
[TimeControl "40/5400+30:1800+30"]

{[%evp 15,81,25,49,48,43,32,31,26,87,45,48,39,55,66,72,28,40,33,46,47,56,57,63,2,37,22,66,59,83,81,146,146,437,121,114,127,136,147,131,112,125,0,123,132,106,120,130,142,258,297,385,368,677,700,700,706,710,704,699,683,699,690,641,267,4132,1322,977,908]} 1. d4 {[%emt 0:00:02]} d5 {[%emt 0:00:06]} 2. Nf3 {[%emt 0:00:10]} Nf6 {[%emt 0:00:42]} 3. c4 {[%emt 0:00:08]} dxc4 {[%emt 0:00:11]} 4. e3 {[%emt 0:00:14]} Bg4 {[%emt 0:00:23]} 5. Bxc4 {[%emt 0:00:17]} e6 {[%emt 0:00:07]} 6. Nc3 {[%emt 0:00:09]} Nbd7 {[%emt 0:06:57]} 7. h3 Bh5 {[%emt 0:00:13]} 8. O-O {[%emt 0:00:22]} Be7 {[%emt 0:02:00]} 9. e4 {[%emt 0:00:51] D25: Queen's Gambit Accepted: 4 e3: sidelines and 4...Bg4.} O-O {[%emt 0:03:20]} 10. g4 $5 {[%emt 0:08:54][%mdl 4] Leaves trodden paths.} Bg6 {[%emt 0:02:11]} 11. Qe2 {[%emt 0:00:08] [#] White is slightly better.} h6 $146 {[%emt 0:15:29]} (11... Nb6 $11 {remains equal.}) ({Predecessor:} 11... c6 12. a4 Bb4 13. g5 Ne8 14. Nh4 Nb6 15. Bb3 Qxd4 16. a5 Nc8 17. Ra4 Qd6 {0-1 (31) Ding,L (2791)-Yu,Y (2709) chess24.com INT 2020}) 12. Rd1 {[%emt 0:02:06]} c6 {[%emt 0:01:53]} 13. Bf4 {[%emt 0:04:41]} Re8 {[%emt 0:03:39]} 14. Bd3 {[%emt 0:04:16]} a5 {[%emt 0:05:27]} 15. a4 {[%emt 0:01:53]} Bb4 {[%emt 0:01:03]} 16. Rac1 {[%emt 0:03:45]} Rc8 {[%emt 0:07:53]} 17. Bg3 {[%emt 0:04:51]} Qb6 {[%emt 0:04:53]} 18. e5 {[%emt 0:17:48]} Nd5 {[%emt 0:11:15]} 19. Ne4 {[%emt 0:01:37]} (19. g5 $14) 19... Be7 {[%emt 0:04:02]} 20. h4 {[%emt 0:01:18]} Bh7 {[%emt 0:04:36]} 21. g5 {[%emt 0:06:25]} hxg5 {[%emt 0:02:35]} 22. Nfxg5 {[%emt 0:05:49]} Bf5 {[%emt 0:03:15]} (22... Bxe4 $142 23. Nxe4 (23. Qxe4 Nf8 $11) 23... Qb4) 23. Nd6 $1 $16 {[%emt 0:02:32]} (23. Qh5 $6 Bg6 24. Qf3 Rf8 $11) 23... Bxd6 $4 {[%emt 0:00:10][%mdl 8192]} (23... Bxg5 $16 24. hxg5 Ra8) 24. Bxf5 $2 {[%emt 0:06:31]} (24. Qh5 $1 $18 {and the rest is easy. White threatens Bxf5 and mate.} Re7 25. Bxf5 (25. exd6 N7f6 $11)) 24... Nf8 {[%emt 0:03:56]} 25. exd6 {[%emt 0:07:56]} exf5 {[%emt 0:00:29] [#]} 26. d7 $1 {[%emt 0:00:03]} (26. Qh5 g6 27. Qf3 (27. Qh6 f4 $17) 27... Qd8 $15) 26... Nxd7 {[%emt 0:01:20]} 27. Qh5 {[%emt 0:00:02] Threatening mate with Qh7+.} N7f6 {[%emt 0:03:35] Prevents Qh7+.} 28. Qxf7+ {[%emt 0:00:08]} Kh8 {[%emt 0:00:05] [#]} 29. Be5 {[%emt 0:03:49]} (29. Ne6 $2 Re7 30. Qg6 Rxe6 $19) 29... Rf8 {[%emt 0:00:59]} 30. Qe6 $40 {[%emt 0:00:58][%mdl 128] White wants a kill. White is more active.} Rce8 {[%emt 0:03:54]} 31. Qxf5 {[%emt 0:00:34][%cal Oh4h5] h5! is the strong threat.} Qxb2 {[%emt 0:00:29]} (31... Qd8 $16 32. Qd3 Kg8) 32. Re1 $18 {[%emt 0:01:18]} (32. Bd6 Nc3 $16) 32... Qd2 {[%emt 0:01:14]} 33. Rcd1 {[%emt 0:01:30]} Qc3 {[%emt 0:02:00]} (33... Ne7 34. Qb1 (34. Rxd2 Nxf5 35. Rb1 c5 $11) 34... Qb4 35. Bxf6 Qxb1 36. Bxg7+ (36. Rxb1 gxf6 37. Rxb7 fxg5 $14) 36... Kxg7 37. Rxb1 Kg8) 34. h5 {[%emt 0:03:40][%cal Bh4h5,Bh5h6][%mdl 32]} Ne7 {[%emt 0:04:35]} 35. Qb1 {[%emt 0:00:02] Bxf6 would kill now.} Qb4 {[%emt 0:01:04]} 36. Qd3 {[%emt 0:03:11] Intending Bxf6 and mate.} Ned5 {[%emt 0:00:46]} 37. h6 {[%emt 0:03:20]} Qe7 {[%emt 0:00:57]} 38. Qg6 {[%emt 0:01:01]} Qd7 {[%emt 0:00:58]} 39. Re4 {[%emt 0:03:43]} Kg8 $2 {[%emt 0:00:42]} (39... gxh6 40. Rh4 Qg7 41. Rxh6+ Kg8) 40. Bxf6 {[%emt 0:00:00]} ({Weaker is} 40. hxg7 Qxg7 41. Qxg7+ Kxg7 $11) (40. Rde1 $142 b6 41. Bxf6 (41. hxg7 Qxg7 42. Qxg7+ Kxg7 $11) 41... Nxf6 42. Rxe8 Rxe8 43. Rxe8+ Nxe8 44. h7+ Kh8 45. Nf7+ Qxf7 46. Qxf7) 40... Nxf6 {[%emt 0:00:00]} 41. Rxe8 {[%emt 0:04:01] Weighted Error Value: White=0.36/Black=0.41} 1-0